bitfinex-derivatives/quotes_SOLF0:USTF0_20250425
["timestamp","ask_amount","ask_price","bid_price","bid_amount"]
[1745609889952,41.90954467,151.14,151.05,15.88104467]
[1745609890253,6.612,151.12,151.05,15.88104467]
[1745609890853,6.612,151.12,151.09,6.6128]
[1745609891054,6.6122,151.11,151.09,6.6128]
[1745609891256,41.90954467,151.14,151.1,6.6126]
[1745609891452,24.06,151.14,151.07,39.94104467]
[1745609891655,8.5059,151.16,151.09,15.88104467]
[1745609891852,24.06,151.17,151.14,6.6106]
[1745609892154,17.82604467,151.2,151.11,15.88104467]
[1745609892456,6.6097,151.17,151.14,6.6106]
[1745609892653,17.82604467,151.2,151.14,6.6106]
[1745609892848,24.06,151.19,151.11,39.94104467]
[1745609893055,24.06,151.19,151.14,6.6107]
[1745609893755,6.6099,151.17,151.14,6.6107]
[1745609893957,24.06,151.19,151.13,6.6111]
[1745609894257,6.6098,151.17,151.11,39.94104467]
[1745609894753,1.945,151.2,151.13,15.88104467]
[1745609894955,6.6085,151.2,151.15,15.88104467]
[1745609895157,6.6085,151.2,151.17,6.6095]
[1745609895358,30.6679,151.21,151.15,15.88104467]
[1745609895549,30.6679,151.21,151.15,39.94104467]
[1745609895857,24.06,151.21,151.15,39.94104467]
[1745609896157,24.06,151.21,151.16,6.6097]
[1745609896361,6.6087,151.2,151.16,6.6097]
[1745609896560,24.06,151.21,151.16,6.6097]
[1745609897962,6.6089,151.19,151.16,6.6097]
[1745609899059,6.6084,151.2,151.17,6.6095]
[1745609899261,24.06,151.21,151.15,24.06]
[1745609899557,30.6682,151.21,151.17,6.6093]
[1745609899761,24.06,151.21,151.15,26.0261]
[1745609901060,6.6084,151.2,151.17,6.6095]
[1745609902770,6.6087,151.19,151.17,6.6095]
[1745609902960,39.94104467,151.21,151.12,42.00544467]
[1745609904666,6.6093,151.18,151.15,6.6102]
[1745609905368,16.76189452,151.18,151.16,6.61]
[1745609905866,6.6098,151.17,151.14,16.76319452]
[1745609906271,10.15259452,151.18,151.14,10.15259452]
[1745609906467,10.15259452,151.18,151.15,6.6104]
[1745609906968,10.15259452,151.18,151.14,16.76329452]
[1745609907170,10.15259452,151.18,151.14,10.15259452]
[1745609907569,16.76189452,151.18,151.15,6.6104]
[1745609907766,10.15259452,151.18,151.14,10.15259452]
[1745609907970,10.15259452,151.2,151.14,10.15259452]
[1745609908271,6.6088,151.19,151.16,6.6098]
[1745609910370,6.6093,151.18,151.15,6.6103]
[1745609910567,10.15259452,151.18,151.15,6.6103]
[1745609911772,6.6099,151.17,151.14,16.76339452]
[1745609912073,6.6099,151.17,151.14,10.15259452]
[1745609912567,6.6099,151.17,151.14,16.76329452]
[1745609912774,10.15259452,151.16,151.12,34.21259452]
[1745609912971,10.15259452,151.16,151.12,10.15259452]
[1745609913276,10.15259452,151.16,151.13,6.6111]
[1745609913678,16.76279452,151.16,151.13,6.6111]
[1745609914970,6.6106,151.15,151.13,6.6111]
[1745609915171,10.15259452,151.16,151.14,6.6109]
[1745609915471,24.02,151.17,151.14,6.6109]
[1745609915672,34.17259452,151.17,151.14,6.6109]
[1745609915874,34.17259452,151.17,151.15,6.6102]
[1745609916270,24.02,151.17,151.15,6.6102]
[1745609916472,10.15259452,151.19,151.14,10.15259452]
[1745609916967,34.17259452,151.2,151.17,6.6094]
[1745609917168,24.02,151.2,151.17,6.6094]
[1745609918773,34.17259452,151.23,151.18,10.15259452]
[1745609918974,10.15259452,151.23,151.18,10.15259452]
[1745609919373,1.9509,151.24,151.2,10.15259452]
[1745609919873,8.5578,151.24,151.21,6.6076]
[1745609922071,1.9509,151.24,151.2,10.15259452]
[1745609922275,10.15259452,151.26,151.22,10.15259452]
[1745609922478,10.15259452,151.27,151.23,10.15259452]
[1745609922677,32.6055,151.28,151.23,10.15259452]
[1745609922877,24.02,151.28,151.24,10.15259452]
[1745609923176,30.6251,151.28,151.25,6.6059]
[1745609924473,6.6054,151.27,151.24,10.15259452]
[1745609924675,10.15259452,151.27,151.22,12.09839452]
[1745609925374,15.84882533,151.27,151.21,24.02]
[1745609925579,6.606,151.26,151.23,6.6066]
[1745609926180,6.6061,151.25,151.23,6.6066]
[1745609926679,6.6061,151.25,151.21,24.02]
[1745609927279,24.02,151.28,151.21,24.02]
[1745609927781,6.6055,151.27,151.24,6.6063]
[1745609928076,24.02,151.28,151.24,6.6063]
[1745609928282,6.6053,151.27,151.24,6.6063]
[1745609928580,24.02,151.28,151.24,6.6063]
[1745609928777,6.6054,151.27,151.24,6.6063]
[1745609930081,6.6057,151.26,151.23,6.6068]
[1745609930381,24.02,151.28,151.23,6.6068]
[1745609930583,26.1113,151.28,151.23,6.6068]
[1745609930782,6.6059,151.26,151.23,6.6068]
[1745609933682,6.6061,151.25,151.22,6.6072]
[1745609934281,6.6066,151.24,151.21,30.6277]
[1745609934483,15.84882533,151.27,151.21,6.6077]
[1745609934679,15.84882533,151.27,151.18,39.86882533]
[1745609934878,6.6072,151.23,151.2,6.6082]
[1745609935483,6.6074,151.22,151.19,6.6086]
[1745609936581,6.608,151.21,151.18,30.629]
[1745609937083,6.6084,151.2,151.17,8.686]
[1745609937278,6.6084,151.2,151.17,6.6095]
[1745609937878,6.6088,151.19,151.17,6.6095]
[1745609938779,6.6085,151.2,151.17,6.6095]
[1745609939383,6.6087,151.19,151.17,6.6095]
[1745609939584,1.9074,151.22,151.17,6.6095]
[1745609940086,6.6085,151.2,151.17,6.6095]
[1745609940382,1.9074,151.22,151.16,6.6099]
[1745609940584,15.84882533,151.21,151.16,6.6099]
[1745609940785,24.02,151.2,151.12,39.86882533]
[1745609941086,24.02,151.2,151.14,6.6107]
[1745609941487,24.02,151.2,151.12,39.86882533]
[1745609941889,6.6094,151.18,151.16,6.61]
[1745609942089,24.02,151.2,151.16,6.61]
[1745609942390,24.02,151.2,151.12,39.86882533]
[1745609943682,3.9356,151.22,151.14,15.84882533]
[1745609944387,6.6079,151.21,151.19,6.6085]
[1745609944588,6.6079,151.21,151.12,24.02]
[1745609944589,23.96,151.23,151.16,39.80882533]
[1745609945592,6.6078,151.22,151.19,6.6085]
[1745609945895,39.80882533,151.23,151.16,23.96]
[1745609946193,6.6085,151.2,151.14,15.84882533]
[1745609946492,39.80882533,151.19,151.1,43.86902533]
[1745609946893,6.6098,151.17,151.14,6.6106]
[1745609947195,39.80882533,151.19,151.14,6.6106]
[1745609947392,10.15574597,151.16,151.14,6.6106]
[1745609947794,16.76584597,151.16,151.13,6.6112]
[1745609948399,16.76584597,151.16,151.11,10.15574597]
[1745609949199,16.76584597,151.16,151.13,6.611]
[1745609949399,6.6101,151.16,151.13,6.611]
[1745609949999,15.86814023,151.18,151.1,28.0202]
[1745609950198,23.96,151.19,151.11,15.86814023]
[1745609950399,15.86814023,151.22,151.13,15.86814023]
[1745609950700,6.6085,151.2,151.18,6.609]
[1745609950898,39.82814023,151.22,151.13,15.86814023]
[1745609951300,6.6088,151.19,151.17,6.6094]
[1745609951599,39.82814023,151.22,151.17,6.6094]
[1745609952101,6.6085,151.2,151.17,6.6094]
[1745609952701,6.6089,151.19,151.16,6.6096]
[1745609953399,6.6089,151.19,151.17,6.6096]
[1745609953600,6.6089,151.19,151.13,15.86814023]
[1745609953801,15.86814023,151.2,151.15,6.6101]
[1745609954000,15.86814023,151.2,151.11,15.86814023]
[1745609954300,6.6095,151.18,151.15,6.6102]
[1745609954500,6.6095,151.18,151.11,15.86814023]
[1745609954802,6.6095,151.18,151.15,6.6101]
[1745609955001,6.6095,151.18,151.11,15.86814023]
[1745609955401,6.6089,151.19,151.16,6.6097]
[1745609957702,6.6092,151.18,151.16,6.6097]
[1745609958003,15.86814023,151.2,151.15,6.6104]
[1745609958402,6.6094,151.18,151.11,15.86814023]
[1745609958904,15.86814023,151.2,151.11,15.86814023]
[1745609960305,6.6096,151.17,151.15,6.6102]
[1745609960706,6.6096,151.17,151.11,15.86814023]
[1745609960905,6.6096,151.17,151.15,6.6103]
[1745609962102,6.61,151.16,151.11,15.86814023]
[1745609962308,39.82814023,151.18,151.1,25.9862]
[1745609962808,6.6102,151.16,151.1,25.9862]
[1745609964109,6.6102,151.16,151.13,6.6109]
[1745609964306,6.6102,151.16,151.1,25.9862]
[1745609964505,6.6105,151.15,151.1,25.9862]
[1745609964706,6.6105,151.15,151.13,6.6111]
[1745609965211,39.82814023,151.18,151.1,25.9862]
[1745609965212,39.82814023,151.18,151.15,6.6104]
[1745609965409,23.96,151.18,151.1,25.9862]
[1745609965711,6.6097,151.17,151.1,25.9862]
[1745609965910,23.96,151.18,151.15,6.6102]
[1745609966109,23.96,151.18,151.11,15.86814023]
[1745609966309,30.5694,151.18,151.11,15.86814023]
[1745609966718,23.96,151.18,151.11,15.86814023]
[1745609967009,30.5692,151.18,151.16,6.6098]
[1745609967211,30.5692,151.18,151.11,15.86814023]
[1745609967511,6.6096,151.17,151.15,6.6102]
[1745609967711,6.6096,151.17,151.11,15.86814023]
[1745609968011,6.6096,151.17,151.14,6.6106]
[1745609968212,6.6096,151.17,151.11,15.86814023]
[1745609968511,6.6096,151.17,151.15,6.6104]
[1745609969413,16.76407692,151.17,151.15,6.6104]
[1745609969712,10.15447692,151.17,151.15,6.6104]
[1745609969909,10.15447692,151.17,151.12,10.15447692]
[1745609970611,10.15447692,151.17,151.15,6.6101]
[1745609970811,10.15447692,151.17,151.12,10.15447692]
[1745609971515,10.15447692,151.17,151.15,6.6101]
[1745609972415,10.15447692,151.17,151.16,6.61]
[1745609974618,23.88,151.24,151.16,10.15447692]
[1745609974816,23.88,151.24,151.19,10.15447692]
[1745609975122,34.03447692,151.24,151.21,6.6078]
[1745609976019,40.64097692,151.24,151.21,6.6078]
[1745609977025,40.64097692,151.24,151.22,6.6073]
[1745609979726,34.03447692,151.24,151.22,6.6073]
[1745609982127,40.64107692,151.24,151.22,6.6073]
[1745609982319,23.88,151.24,151.22,6.6073]
[1745609982521,23.88,151.24,151.19,10.15447692]
[1745609982920,23.88,151.24,151.23,6.607]
[1745609983425,23.88,151.24,151.22,6.6072]
[1745609984626,30.4867,151.24,151.22,6.6072]
[1745609985026,10.15447692,151.23,151.2,6.6081]
[1745609985324,6.6076,151.22,151.18,10.15447692]
[1745609985527,6.6076,151.22,151.19,6.6085]
[1745609985828,16.76167692,151.23,151.18,10.15447692]
[1745609986127,23.88,151.24,151.18,10.15447692]
[1745609986329,34.03447692,151.24,151.2,10.15447692]
[1745609986523,40.64117692,151.24,151.2,10.15447692]
[1745609986725,40.64117692,151.24,151.21,6.6078]
[1745609990031,40.64117692,151.24,151.22,6.6074]
[1745609990731,6.6071,151.23,151.21,6.6076]
[1745609990934,34.03447692,151.24,151.2,10.15447692]
[1745609991233,34.03447692,151.24,151.2,16.76247692]
[1745609991632,34.03447692,151.24,151.18,10.15447692]
[1745609991832,10.15447692,151.22,151.2,6.6081]
[1745609992333,34.03447692,151.24,151.18,10.15447692]
[1745609992530,34.03447692,151.24,151.21,6.6076]
[1745609993430,6.6072,151.23,151.2,6.6081]
[1745609994534,6.6074,151.22,151.2,6.6081]
[1745609994734,10.15447692,151.22,151.19,6.6085]
[1745609994933,10.15447692,151.22,151.16,12.23187692]
[1745609995135,10.15447692,151.2,151.16,10.15447692]
[1745609995932,10.15447692,151.23,151.18,10.15447692]
[1745609996536,10.15447692,151.23,151.2,6.6082]
[1745609997439,10.15447692,151.23,151.18,10.15447692]
[1745609997637,10.15447692,151.23,151.2,10.15447692]
[1745609998038,23.88,151.24,151.22,6.6071]
[1745610000238,30.4866,151.24,151.21,6.6077]
[1745610000537,23.88,151.24,151.21,6.6077]
[1745610000740,23.88,151.24,151.22,6.607]
[1745610000935,2.0132,151.26,151.22,10.15447692]
[1745610001741,36.05397692,151.28,151.22,10.15447692]
[1745610003240,42.65917692,151.28,151.24,6.6063]
[1745610003642,36.05397692,151.28,151.24,6.6063]
[1745610003838,36.05397692,151.28,151.25,6.6061]
[1745610004041,10.15447692,151.26,151.21,10.15447692]
[1745610004340,10.15447692,151.25,151.21,10.15447692]
[1745610004542,10.15447692,151.25,151.22,6.6073]
[1745610004742,10.15447692,151.25,151.21,10.15447692]
[1745610005243,10.15447692,151.25,151.22,6.6073]
[1745610005543,10.15447692,151.25,151.21,10.15447692]
[1745610005743,10.15447692,151.25,151.22,6.607]
[1745610006244,34.01447692,151.28,151.23,10.15447692]
[1745610006641,40.61927692,151.28,151.25,6.6057]
[1745610010147,40.61927692,151.28,151.26,6.6056]
[1745610010448,23.86,151.28,151.25,10.15447692]
[1745610010645,23.84,151.31,151.3,6.6039]
[1745610010849,23.84,151.31,151.27,10.15447692]
[1745610011756,23.84,151.31,151.28,6.6047]
[1745610011956,30.4435,151.31,151.28,6.6047]
[1745610012255,23.84,151.31,151.27,10.15447692]
[1745610012451,30.4436,151.31,151.28,6.6045]
[1745610012648,23.84,151.31,151.27,10.15447692]
[1745610014257,6.6041,151.3,151.27,16.75947692]
[1745610014655,10.15447692,151.33,151.27,10.15447692]
[1745610014857,10.15447692,151.33,151.24,23.84]
[1745610014858,6.6028,151.33,151.3,6.6037]
[1745610015157,6.6028,151.33,151.29,10.15447692]
[1745610015458,6.6028,151.33,151.3,6.6036]
[1745610017059,6.6031,151.32,151.3,6.6036]
[1745610017351,6.6031,151.32,151.29,10.15447692]
[1745610017352,10.15447692,151.34,151.29,10.15447692]
[1745610018355,6.6028,151.33,151.3,6.6036]
[1745610018555,10.15447692,151.34,151.29,10.15447692]
[1745610018757,10.15447692,151.32,151.25,2.0202]
[1745610018957,10.15447692,151.3,151.26,10.15447692]
[1745610019362,10.15447692,151.3,151.26,6.6055]
[1745610019759,10.15447692,151.3,151.25,2.0202]
[1745610019961,6.6047,151.29,151.26,6.6054]
[1745610020962,6.6047,151.29,151.27,6.6051]
[1745610021660,16.75857692,151.3,151.28,6.6047]
[1745610021856,16.75857692,151.3,151.25,2.0202]
[1745610022057,16.75857692,151.3,151.27,6.6049]
[1745610022458,16.75857692,151.3,151.25,2.0202]
[1745610022859,23.84,151.31,151.28,10.15447692]
[1745610023055,10.15447692,151.33,151.28,10.15447692]
[1745610023359,6.6031,151.32,151.28,10.15447692]
[1745610023660,10.15447692,151.33,151.3,6.6036]
[1745610023859,10.15447692,151.33,151.28,10.15447692]
[1745610024158,23.84,151.34,151.3,10.15447692]
[1745610024356,23.84,151.34,151.32,6.6028]
[1745610025159,23.84,151.34,151.31,6.6033]
[1745610025959,23.84,151.34,151.3,10.15447692]
[1745610025960,10.15447692,151.33,151.28,33.99447692]
[1745610026459,10.15447692,151.33,151.31,6.6032]
[1745610026959,10.15447692,151.33,151.28,33.99447692]
[1745610027160,23.84,151.34,151.3,10.15447692]
[1745610027161,30.4422,151.34,151.3,10.15447692]
[1745610027562,30.4422,151.34,151.32,6.603]
[1745610027863,30.4422,151.34,151.3,10.15447692]
[1745610028159,30.4422,151.34,151.31,6.6032]
[1745610028561,30.4422,151.34,151.3,10.15447692]
[1745610029162,10.15447692,151.32,151.28,23.84]
[1745610029664,16.75777692,151.32,151.29,6.6041]
[1745610030562,6.6035,151.31,151.29,6.6041]
[1745610030762,10.15447692,151.3,151.26,10.15447692]
[1745610030963,10.15447692,151.3,151.25,23.84]
[1745610031164,16.75867692,151.3,151.25,23.84]
[1745610031467,16.75867692,151.3,151.27,6.6051]
[1745610031767,10.15447692,151.3,151.25,23.84]
[1745610032568,16.75867692,151.3,151.27,6.605]
[1745610032767,10.15447692,151.3,151.27,6.605]
[1745610033266,16.75857692,151.3,151.27,6.605]
[1745610033566,10.15447692,151.3,151.27,6.605]
[1745610034164,6.6044,151.29,151.26,6.6055]
[1745610034461,10.15447692,151.28,151.24,10.15447692]
[1745610034664,16.75947692,151.28,151.25,6.6057]
[1745610034865,10.15447692,151.28,151.22,35.99997692]
[1745610035067,10.15447692,151.26,151.21,25.7264]
[1745610035260,6.6061,151.25,151.22,6.607]
[1745610035460,10.15447692,151.26,151.21,25.7264]
[1745610035866,16.76037692,151.26,151.23,6.6068]
[1745610036570,10.15447692,151.26,151.21,1.8864]
[1745610036870,10.15447692,151.26,151.2,10.15447692]
[1745610037469,6.6064,151.25,151.22,6.6073]
[1745610038272,16.76027692,151.26,151.23,6.6068]
[1745610039472,6.6064,151.25,151.22,6.6073]
[1745610039772,10.15447692,151.23,151.18,25.7848]
[1745610039971,10.15447692,151.23,151.21,6.6077]
[1745610040666,16.76147692,151.23,151.21,6.6077]
[1745610041471,16.76147692,151.23,151.2,6.6081]
[1745610041863,10.15447692,151.23,151.19,10.15447692]
[1745610042169,10.15447692,151.25,151.19,10.15447692]
[1745610042873,16.76067692,151.25,151.22,6.6072]
[1745610046273,6.6066,151.24,151.21,6.6076]
[1745610047173,16.76167692,151.23,151.2,6.6081]
[1745610047370,10.15447692,151.23,151.19,10.15447692]
[1745610047873,10.15447692,151.23,151.21,6.6076]
[1745610048674,16.76057692,151.25,151.19,10.15447692]
[1745610048872,23.84,151.26,151.21,10.15447692]
[1745610049072,10.15447692,151.27,151.23,10.15447692]
[1745610049273,6.6058,151.26,151.23,16.76127692]
[1745610049576,6.6058,151.26,151.23,6.6068]
[1745610049774,10.15447692,151.27,151.21,10.15447692]
[1745610049974,6.6062,151.25,151.23,6.6069]
[1745610050273,10.15447692,151.25,151.23,6.6069]
[1745610052076,10.15447692,151.26,151.24,6.6065]
[1745610052975,6.6062,151.25,151.2,10.15447692]
[1745610053276,10.15447692,151.24,151.18,35.93927692]
[1745610053575,16.76117692,151.24,151.22,6.6074]
[1745610053877,10.15447692,151.24,151.22,6.6074]
[1745610054075,10.15447692,151.24,151.18,35.93927692]
[1745610054375,10.15447692,151.24,151.23,6.607]
[1745610055170,10.15447692,151.24,151.22,6.6072]
[1745610055778,10.15447692,151.24,151.21,6.6076]
[1745610056077,16.76117692,151.24,151.21,6.6076]
[1745610056279,10.15447692,151.24,151.22,6.6074]
[1745610058279,40.60077692,151.25,151.22,6.6074]
[1745610058779,6.6065,151.24,151.21,6.6077]
[1745610059080,33.99447692,151.25,151.2,10.15447692]
[1745610059280,40.60077692,151.25,151.2,10.15447692]
[1745610059481,33.99447692,151.25,151.2,10.15447692]
[1745610059783,6.6065,151.24,151.2,10.15447692]
[1745610059983,33.99447692,151.25,151.22,6.6072]
[1745610060284,40.60077692,151.25,151.22,6.6072]
[1745610060684,33.99447692,151.25,151.23,6.6069]
[1745610060983,33.99447692,151.25,151.2,10.15447692]
[1745610061779,10.15447692,151.25,151.2,10.15447692]
[1745610061983,10.15447692,151.25,151.23,6.6067]
[1745610062585,16.76067692,151.25,151.23,6.6067]
[1745610063884,10.15447692,151.25,151.23,6.6067]
[1745610064085,10.15447692,151.25,151.24,6.6065]
[1745610064488,33.99447692,151.27,151.25,6.6058]
[1745610065387,33.99447692,151.27,151.24,6.6063]
[1745610065587,33.99447692,151.27,151.22,10.15447692]
[1745610065785,10.15447692,151.25,151.2,10.15447692]
[1745610065985,16.76077692,151.25,151.23,6.6069]
[1745610066785,10.15447692,151.25,151.21,6.6076]
[1745610067083,10.15447692,151.23,151.21,6.6076]
[1745610068289,16.76147692,151.23,151.21,6.6076]
[1745610068584,10.15447692,151.23,151.21,6.6076]
[1745610069087,10.15447692,151.23,151.19,6.6085]
[1745610069386,6.6076,151.22,151.18,35.93927692]
[1745610069583,6.6076,151.22,151.18,12.09927692]
[1745610069784,6.6076,151.22,151.19,6.6085]
[1745610069986,10.15447692,151.21,151.19,6.6085]
[1745610070887,6.6083,151.2,151.16,10.15447692]
[1745610071483,10.15447692,151.21,151.16,10.15447692]
[1745610071484,10.15447692,151.21,151.17,6.6093]
[1745610072087,6.6085,151.2,151.17,6.6093]
[1745610072587,16.76257692,151.21,151.18,6.609]
[1745610073188,6.6084,151.2,151.17,6.6095]
[1745610074589,16.76257692,151.21,151.18,6.6091]
[1745610075089,10.15447692,151.21,151.18,6.6091]
[1745610075790,6.6086,151.2,151.17,6.6094]
[1745610076382,10.15447692,151.19,151.15,6.6102]
[1745610076686,10.15447692,151.17,151.15,6.6102]
[1745610076990,10.15447692,151.17,151.14,6.6107]
[1745610077290,10.15447692,151.17,151.12,33.99447692]
[1745610078293,16.76427692,151.17,151.14,6.6108]
[1745610078793,6.6101,151.16,151.13,6.6111]
[1745610078988,10.15447692,151.15,151.1,10.15447692]
[1745610079300,10.15447692,151.13,151.08,33.99447692]
[1745610079591,10.15447692,151.13,151.11,6.6122]
[1745610080196,10.15447692,151.13,151.08,33.99447692]
[1745610080794,10.15447692,151.13,151.11,6.612]
[1745610081396,10.15447692,151.13,151.12,6.6118]
[1745610083595,10.15447692,151.13,151.11,6.6121]
[1745610084197,16.76597692,151.13,151.1,6.6125]
[1745610085096,10.15447692,151.13,151.11,6.6122]
[1745610085596,10.15447692,151.13,151.11,6.6119]
[1745610086596,10.15447692,151.13,151.08,33.99447692]
[1745610086597,10.15447692,151.13,151.12,6.6118]
[1745610086895,10.15447692,151.13,151.08,33.99447692]
[1745610087195,10.15447692,151.13,151.11,6.612]
[1745610088396,10.15447692,151.13,151.12,6.6118]
[1745610088797,33.99447692,151.15,151.1,10.15447692]
[1745610089094,33.99447692,151.15,151.13,6.6111]
[1745610090493,40.60497692,151.15,151.13,6.6111]
[1745610090796,10.15447692,151.14,151.12,6.6116]
[1745610093199,10.15447692,151.14,151.13,6.6113]
[1745610094096,10.15447692,151.14,151.1,10.15447692]
[1745610094097,16.76467692,151.16,151.14,6.6109]
[1745610094397,16.76467692,151.16,151.1,10.15447692]
[1745610094595,16.76467692,151.16,151.13,6.611]
[1745610094898,16.76467692,151.16,151.1,10.15447692]
[1745610095096,10.15447692,151.16,151.1,10.15447692]
[1745610095396,6.6098,151.17,151.12,10.15447692]
[1745610095397,10.15447692,151.17,151.12,10.15447692]
[1745610095900,34.01447692,151.18,151.16,6.6096]
[1745610098300,40.62367692,151.18,151.15,6.6103]
[1745610099201,40.62367692,151.18,151.16,6.61]
[1745610099500,40.62367692,151.18,151.14,10.15447692]
[1745610099702,10.15447692,151.15,151.13,6.6111]
[1745610099900,10.15447692,151.14,151.07,10.15447692]
[1745610100103,10.15447692,151.12,151.07,10.15447692]
[1745610100703,10.15447692,151.13,151.11,6.612]
[1745610102204,16.76587692,151.13,151.1,6.6124]
[1745610102501,10.15447692,151.12,151.1,6.6124]
[1745610104301,16.76547692,151.14,151.11,6.6122]
[1745610104509,10.15447692,151.16,151.1,10.15447692]
[1745610105006,16.76487692,151.16,151.13,6.6111]
[1745610105906,10.15447692,151.16,151.12,10.15447692]
[1745610106505,10.15447692,151.16,151.14,6.6107]
[1745610106708,10.15447692,151.16,151.12,10.15447692]
[1745610107411,16.76467692,151.16,151.13,6.611]
[1745610109507,6.6105,151.15,151.12,6.6116]
[1745610109806,6.6105,151.15,151.11,10.15447692]
[1745610110010,16.76467692,151.16,151.13,6.6113]
[1745610110414,10.15447692,151.16,151.11,10.15447692]
[1745610110710,6.6105,151.15,151.13,6.6113]
[1745610111007,10.15447692,151.16,151.13,6.6113]
[1745610112211,16.76487692,151.16,151.13,6.6113]
[1745610112612,16.76487692,151.16,151.11,10.15447692]
[1745610113119,16.76487692,151.16,151.13,6.611]
[1745610115821,6.6105,151.15,151.12,6.6116]
[1745610116016,10.15447692,151.14,151.09,10.15447692]
[1745610116419,16.76557692,151.14,151.11,6.6122]
[1745610117320,16.76607692,151.13,151.1,6.6125]
[1745610117617,10.15447692,151.12,151.1,6.6125]
[1745610120622,10.15447692,151.12,151.11,6.6122]
[1745610120917,10.15447692,151.13,151.11,6.6122]
[1745610122721,10.15447692,151.18,151.12,10.15447692]
[1745610122918,10.15447692,151.18,151.14,10.15447692]
[1745610123423,10.15447692,151.18,151.16,6.6098]
[1745610123622,2.0849,151.21,151.16,10.15447692]
[1745610123819,12.24167692,151.22,151.16,10.15447692]
[1745610124019,12.24167692,151.22,151.18,10.15447692]
[1745610124220,23.86,151.23,151.18,10.15447692]
[1745610124520,23.86,151.23,151.2,10.15447692]
[1745610125423,23.86,151.23,151.2,16.76247692]
[1745610126721,23.86,151.23,151.21,6.6078]
[1745610127825,23.86,151.23,151.2,16.76247692]
[1745610128828,30.467,151.23,151.2,16.76247692]
[1745610129323,30.467,151.23,151.2,10.15447692]
[1745610129524,23.86,151.23,151.2,10.15447692]
[1745610130031,30.4672,151.23,151.2,16.76267692]
[1745610130630,30.4672,151.23,151.2,10.15447692]
[1745610131031,23.86,151.23,151.2,10.15447692]
[1745610131232,23.86,151.23,151.21,6.6077]
[1745610131434,6.6067,151.24,151.21,6.6077]
[1745610131629,10.15447692,151.25,151.22,10.15447692]
[1745610131933,10.15447692,151.27,151.22,10.15447692]
[1745610132130,6.6059,151.26,151.22,10.15447692]
[1745610132536,10.15447692,151.27,151.22,16.76177692]
[1745610133636,6.6062,151.25,151.22,10.15447692]
[1745610134933,10.15447692,151.27,151.22,10.15447692]
[1745610135237,10.15447692,151.25,151.2,12.16127692]
[1745610135535,6.6068,151.24,151.2,12.16127692]
[1745610135736,10.15447692,151.25,151.2,12.16127692]
[1745610136038,10.15447692,151.27,151.22,16.76187692]
[1745610136639,6.6062,151.25,151.22,16.76187692]
[1745610137237,6.6062,151.25,151.22,10.15447692]
[1745610138835,10.15447692,151.25,151.2,12.16127692]
[1745610139137,10.15447692,151.23,151.19,23.84]
[1745610139337,10.15447692,151.23,151.18,10.15447692]
[1745610139538,10.15447692,151.23,151.19,6.6086]
[1745610139739,10.15447692,151.23,151.18,10.15447692]
[1745610139941,30.4468,151.24,151.2,16.76257692]
[1745610140940,6.607,151.23,151.2,16.76257692]
[1745610141845,30.4468,151.24,151.2,16.76257692]
[1745610142643,30.4468,151.24,151.21,6.6078]
[1745610142936,30.4468,151.24,151.2,10.15447692]
[1745610143141,30.4468,151.24,151.2,16.76257692]
[1745610144138,6.607,151.23,151.2,16.76257692]
[1745610146947,23.84,151.24,151.2,10.15447692]
[1745610147142,33.99447692,151.27,151.22,10.15447692]
[1745610147744,6.6059,151.26,151.23,6.6068]
[1745610147946,33.99447692,151.27,151.22,10.15447692]
[1745610148248,6.6063,151.25,151.22,16.76157692]
[1745610149046,6.6068,151.24,151.22,10.15447692]
[1745610149248,10.15447692,151.25,151.2,10.15447692]
[1745610149647,6.6069,151.24,151.2,16.76247692]
[1745610149849,6.6069,151.24,151.2,10.15447692]
[1745610150147,6.6069,151.24,151.21,6.6078]
[1745610151749,6.6071,151.23,151.2,16.76257692]
[1745610153449,6.6071,151.23,151.21,6.6078]
[1745610153651,6.6067,151.24,151.21,6.6078]
[1745610154353,6.607,151.23,151.21,6.6078]
[1745610154550,6.607,151.23,151.2,16.76247692]